{"text_format":"3","workbook":"xlsx","n_sheets":4,"sheets":["Диаграмма3","Лист1","Лист2","Лист3"],"not_rendered":{"charts":2,"defined_names":4},"unopened":[{"sheet":"Диаграмма3","index":0,"reason":"not_a_worksheet"}],"read":"whole","date_system":"1900"}

{"sheet":"Лист1","index":1,"n_rows":189,"n_cols":15,"rows_kept":189}
[null,"Наименование ОУ","Ф.И.О.","Образование","Название кружка","Направление обучения","На сколько лет расчитана программа кружка","Какой год обучается группа","Год обучения","Планируемая наполняемость группы","Наполняемость группы","Количество вакантных мест для приёма (перевода) за счёт бюджетных ассигнований федерального бюджета","Количество вакантных мест для приёма (перевода) за счёт бюджетных ассигнований бюджетов субъекта Российской Федерации","Количество вакантных мест для приёма (перевода) за счёт бюджетных ассигнований местных бюджетов","Количество вакантных мест для приёма (перевода) за счёт средств физических и (или) юридических лиц"]
[1,"МБОУ Кривоозерская сош”","Королев Владимир Викторович","ср.сп","Шашки, шахматы","ФС",null,1,1,{"$f":"IF(I2=1,15,IF(I2=2,12,IF(I2=3,10)))","v":15},15,0,0,0,0]
[2,"МБОУ Кривоозерская сош”","Голованова Татьяна Александровна","высш","ЮИД","СП",3,1,1,15,15,0,0,0,0]
[3,"МБОУ Кривоозерская сош”","Купцова Наталия Геннадьевна","высш.","краеведение","ТК",1,1,1,15,15,0,0,0,0]
[{"$nulls":8},"Всего",{"$f":"SUM(J2:J4)","v":45},{"$f":"SUM(K2:K4)","v":45}]
[]
[1,"МБОУ “Новодемкинская сош”","Валиулин Джавдат Асхатович","высш","Юн.умелец","ТТ",2,1,2,{"$f":"IF(I7=1,15,IF(I7=2,12,IF(I7=3,10)))","v":12},15,0,0,0,0]
[2,"МБОУ “Новодемкинская сош”","Абрарова Лилия Табрисовна","высш","ЮИД","СП",3,1,1,15,15,0,0,0,0]
[{"$nulls":8},"Всего",{"$f":"SUM(J8:J8)","v":15},{"$f":"SUM(K7:K8)","v":30}]
[]
[1,"МБОУ Староибрайкинкая сош”","Сафиуллина Якуба Гумеровича","ср/спец","Юный изобретатель","ТТ",3,1,2,12,15,0,0,0,0]
[2,"МБОУ Староибрайкинкая сош”","Хузин Айдар Тагирзянович","ср/спец","Начальное техническое моделирование","ТТ",3,1,1,15,15,0,0,0,0]
[3,"МБОУ Староибрайкинкая сош”","Бикушева Раиса Харисовича","высш","волейбол","ФС",3,1,1,15,15,0,0,0,0]
[4,"МБОУ Староибрайкинкая сош”","Залалтдинова Флера Минсалиховна","высш","юный химик","ЕН",3,2,3,10,15,0,0,0,0]
[5,"МБОУ Староибрайкинкая сош”","Ярмухаметова Руфия Вазыховна","высш","краеведение","ТК",3,1,2,12,15,0,0,0,0]
[6,"МБОУ Староибрайкинкая сош”","Хайруллина Зульфира Вализановна","высш","юный грамотей","СП",3,2,2,12,15,0,0,0,0]
[7,"МБОУ Староибрайкинкая сош”","Бикушева Раиса Харисовича","высш","туризм","ТК",3,1,1,15,15,0,0,0,0]
[8,"МБОУ Староибрайкинкая сош”","Батдалова Илюза Ринатовна","высш","клуб Пифагора","СП",3,2,1,15,15,0,0,0,0]
[9,"МБОУ Староибрайкинкая сош”","Хуснулгатина Лейсан Минахметовна","высш","ЮИД","СП",3,1,2,12,15,0,0,0,0]
[10,"МБОУ Староибрайкинкая сош”","Минигулова Лилия Минасхатовна","высш","Страна мастериц","ТТ",3,2,2,12,15,0,0,0,0]
[{"$nulls":8},"Всего",{"$f":"SUM(J11:J20)","v":130},{"$f":"SUM(K11:K20)","v":150}]
[]
[1,"МБОУ “Карасинская ош ”","Минхайдарова Гульнара Кучкаралиевна","высш","ЮИД","СП",3,1,1,15,15,0,0,0,0]
[{"$nulls":8},"Всего",{"$f":"SUM(J23:J23)","v":15},{"$f":"SUM(K23:K23)","v":15}]
[]
[1,"МБОУ \"Новоибрайкинская сош ”","Мутигуллина Шамиль Нургалиевич","ср/спец","баскетбол","ФС",2,2,2,12,15,0,0,0,0]
[2,"МБОУ Новоибрайкинская сош ”","Гильмутдинова Рузалия Разяповна","высш","ЮИД","СП",3,1,1,15,15,0,0,0,0]
[3,"МБОУ Новоибрайкинская сош ”","Мотыгуллин Ринат Нургалиевич","высш","Умелые руки","ТТ",1,1,1,15,15,0,0,0,0]
[{"$nulls":8},"Всего",{"$f":"SUM(J26:J28)","v":42},{"$f":"SUM(K26:K28)","v":45}]
[]
[1,"МБОУ Новотимошкинская сош”","Сандимирова Николая Михайловича","высш","сыны Отечества; ","ВП",3,3,3,10,15,0,0,0,0]
[2,"МБОУ Новотимошкинская сош”","Ямукову Ольгу Анатольевну","высш",null,"ХЭ",3,1,1,15,15,0,0,0,0]
[{"$nulls":8},"Всего",{"$f":"SUM(J31:J32)","v":25},{"$f":"SUM(K31:K32)","v":30}]
[]
[1,"МБОУ Старомокшинская сош ”","Гайнуллин Фархат Габдуллович","высш","баскетбол(м)","ФС",2,2,1,15,15,0,0,0,0]
[2,"МБОУ Старомокшинская сош ”","Михайлова Валентина Михайловна","высш","Я и компьютер","ТТ",1,2,1,15,15,0,0,0,0]
[3,"МБОУ Старомокшинская сош ”","Шарафутдинову Гузель Фасхетдиновну","высш","Сандугачкай ","ХЭ",3,2,1,15,15,0,0,0,0]
[4,"МБОУ Старомокшинская сош ”","Андриянова Ольга Евгеньевна","высш",null,"ХЭ",1,2,1,15,15,0,0,0,0]
[5,"МБОУ Старомокшинская сош ”","Зайцева Галина Геннадьевна","высш","В мире научных открытий","СП",1,2,1,15,15,0,0,0,0]
[6,"МБОУ Старомокшинская сош ”","Бикулов Марс Паймурзович","высш","Агрокласс","ЕН",1,2,1,15,15,0,0,0,0]
[7,"МБОУ Старомокшинская сош ”","Сухалова Лилия Ринатовна","высш","ЮИД","СП",null,1,1,15,15,0,0,0,0]
[8,"МБОУ Старомокшинская сош ”","Мифтахова  Гульназ  Зиннуровна","высш","Рукодельница","ХЭ",3,2,2,12,15,0,0,0,0]
[{"$nulls":8},"Всего",{"$f":"SUM(J35:J42)","v":117},{"$f":"SUM(K35:K42)","v":120}]
[]
[1,"МБОУ Старотимошкинская сш”","Чугунова Надежда Евлампьевна","Ср. спец","ЮИД","СП",3,2,3,10,15,0,0,0,0]
[2,"МБОУ Старотимошкинская сш”","Мулеев Владислав Михайлович","высшее","Бадминтон","ФС",3,1,3,10,15,0,0,0,0]
[3,"МБОУ Старотимошкинская сш”","Яшмурзина Наталья Владимировна","высшее","умелые руки","ХЭ",3,1,1,15,15,0,0,0,0]
[4,"МБОУ Старотимошкинская сш”","Мелентьева Светлана Сергеевна","высшее","робототехника","ТТ",3,1,1,15,15,0,0,0,0]
[5,"МБОУ Старотимошкинская сш”","Чугунов Василий Аркадьевич","высшее","баскетбол","ФС",3,1,2,12,15,0,0,0,0]
[6,"МБОУ Старотимошкинская сш”","Чугунов Василий Аркадьевич","высшее","Юный спасатель","ВП",1,1,1,{"$f":"IF(I50=1,15,IF(I50=2,12,IF(I50=3,10)))","v":15},15,0,0,0,0]
[8,"МБОУ Старотимошкинская сш”","Пименова Альбина Васильевна","высшее","Светлячок","ХЭ",3,1,2,{"$f":"IF(I51=1,15,IF(I51=2,12,IF(I51=3,10)))","v":12},15,0,0,0,0]
[9,"МБОУ Старотимошкинская сш”","Патмаев Владимир Васильевич","ср/спец","Автомоделирование","ТТ",2,2,2,{"$f":"IF(I52=1,15,IF(I52=2,12,IF(I52=3,10)))","v":12},15,0,0,0,0]
[{"$nulls":8},"Всего",{"$f":"SUM(J45:J52)","v":101},{"$f":"SUM(K45:K52)","v":120}]
[]
[1,"МБОУ Сунчелеевская сош ”","Степанова Надежда Юрьевна","высш.","Волейбол","ФС",3,1,2,{"$f":"IF(I55=1,15,IF(I55=2,12,IF(I55=3,10)))","v":12},15,0,0,0,0]
[2,"МБОУ Сунчелеевская сош ”","Карпаева Алевтина Николаевна","высш","Театральное исскуство ","ХЭ",3,1,1,{"$f":"IF(I56=1,15,IF(I56=2,12,IF(I56=3,10)))","v":15},15,0,0,0,0]
[3,"МБОУ Сунчелеевская сош ”","Калукова Валентина Викторовна","высш","юннат","ЭБ",3,1,3,{"$f":"IF(I57=1,15,IF(I57=2,12,IF(I57=3,10)))","v":10},15,0,0,0,0]
[4,"МБОУ Сунчелеевская сош ”","Воркунов Вячеслав Иосифович","высш","Баскетбол","ФС",3,1,3,{"$f":"IF(I58=1,15,IF(I58=2,12,IF(I58=3,10)))","v":10},15,0,0,0,0]
[5,"МБОУ Сунчелеевская сош ”","Калуков Алексея Владимировича","высш","ЮИД","СП",3,1,1,{"$f":"IF(I59=1,15,IF(I59=2,12,IF(I59=3,10)))","v":15},15,0,0,0,0]
[{"$nulls":8},"Всего",{"$f":"SUM(J55:J59)","v":62},{"$f":"SUM(K55:K59)","v":75}]
[]
[1,"МБОУ “Аксубаевская сош №3”","Голованова Светлана Васильевна","ср/спец","прикладное искусство","ТТ",3,1,1,{"$f":"IF(I62=1,15,IF(I62=2,12,IF(I62=3,10)))","v":15},15,0,0,0,0]
[2,"МБОУ “Аксубаевская сош №3”","Голованова Светлана Васильевна","ср/спец","прикладное искусство","ТТ",3,1,3,10,15,0,0,0,0]
[3,"МБОУ “Аксубаевская сош №3”","Гаврилов Михаил Петрович","высш","Обществовед","СП",3,1,1,15,15,0,0,0,0]
[4,"МБОУ “Аксубаевская сош №3”","Кандалина Людмила Геннадьевна","высш","Занимательный английский","СП",3,1,2,12,15,0,0,0,0]
[5,"МБОУ “Аксубаевская сош №3”","Шихранову Зою Петровну","высш","Бадминтон","ФС",3,1,1,15,15,0,0,0,0]
[6,"МБОУ “Аксубаевская сош №3”","Шихранову Зою Петровну","высш","Волейбол","ФС",3,1,2,12,15,0,0,0,0]
[7,"МБОУ “Аксубаевская сош №3”","Дружкова Любовь Анатольевна","высш","Дорожный патруль","СП",3,1,2,12,15,0,0,0,0]
[8,"МБОУ “Аксубаевская сош №3”","Зайнуллина Лилия Альбертовна","высш","Школа конструирования","ТТ",null,1,1,15,15,0,0,0,0]
[9,"МБОУ “Аксубаевская сош №3”","Громову Ольгу Петровну","высш","Веселые краски","ХЭ",4,1,2,12,15,0,0,0,0]
[10,"МБОУ “Аксубаевская сош №3”","Таиркину Галину Николаевну","высш","Экологическая азбука","ЭБ",4,1,2,12,15,0,0,0,0]
[11,"МБОУ “Аксубаевская сош №3”","Газизова Айгуль Базарбаевна","высш","ТЗБ.вопросы рус.языка","СП",1,1,1,15,15,0,0,0,0]
[12,"МБОУ “Аксубаевская сош №3”","Удиярова Татьяна Георгиевна","высш","Край родной мой","ТК",2,1,2,12,15,0,0,0,0]
[13,"МБОУ “Аксубаевская сош №3”","Купорова Наталья Николаевна","высш","юный физик","ЕН",2,1,2,12,15,0,0,0,0]
[14,"МБОУ “Аксубаевская сош №3”","Козлова Зинаида Аркадьевна","высш","юный химик","ЕН",2,1,2,12,15,0,0,0,0]
[15,"МБОУ “Аксубаевская сош №3”","Макаров Юрий Никитович","высш","юный патриот","ВП",2,2,1,15,15,0,0,0,0]
[16,"МБОУ “Аксубаевская сош №3”","Водышеву Людмилу Николаевну","ысш","юный натуралист (1 группа)","ЭБ",3,1,3,{"$f":"IF(I77=1,15,IF(I77=2,12,IF(I77=3,10)))","v":10},15,0,0,0,0]
[17,"МБОУ “Аксубаевская сош №3”","Водышеву Людмилу Николаевну","ысш","юный натуралист (2 группа)","ЭБ",3,1,2,12,15,0,0,0,0]
[18,"МБОУ “Аксубаевская сош №3”","Пензенцева Екатерина Ивановна","высш","Занимательная геология","СП",1,1,1,15,15,0,0,0,0]
[19,"МБОУ “Аксубаевская сош №3”","Семенова Татьяна Анатольевна",null,"Калейдоскоп (псих)","СП",3,2,2,12,15,0,0,0,0]
[20,"МБОУ “Аксубаевская сош №3”","Муратшина Рушания Абдрахмановна","высш","Народная жемчужина","СП",3,1,3,10,15,0,0,0,0]
[21,"МБОУ “Аксубаевская сош №3”","Рябова Надежда Васильевна",null,"Разноцветный английский","СП",2,2,1,15,15,0,0,0,0]
[22,"МБОУ “Аксубаевская сош №3”","Канафин Радик Касымович","высш","Баскетбол","ФС",3,1,1,{"$f":"IF(I83=1,15,IF(I83=2,12,IF(I83=3,10)))","v":15},15,0,0,0,0]
[23,"МБОУ “Аксубаевская сош №3”","Маркова Анна Григорьевна","высш","Театр","ХЭ",3,1,1,15,15,0,0,0,0]
[24,"МБОУ “Аксубаевская сош №3”","Горбунов Геннадий Валерьевич","высш","Шашки, шахматы","ФС",2,1,1,15,15,0,0,0,0]
[{"$nulls":8},"Всего",{"$f":"SUM(J62:J85)","v":315},{"$f":"SUM(K62:K85)","v":360}]
[]
[1,"МБОУ Аксубаевская сош №2”","Вафину Флеру Вазыховну","высш","абитур.(рус.яз)","СП",2,2,1,{"$f":"IF(I88=1,15,IF(I88=2,12,IF(I88=3,10)))","v":15},15,0,0,0,0]
[2,"МБОУ Аксубаевская сош №2”","Буинский Алексей Валерьевич","высш","Баскетбол","ФС",3,2,2,12,15,0,0,0,0]
[3,"МБОУ Аксубаевская сош №2”","Буинский Алексей Валерьевич","высш","Настольный теннис","ФС",3,2,1,15,15,0,0,0,0]
[4,"МБОУ Аксубаевская сош №2”","Горбунова Геннадия Валерьевича","высш","клио","СП",3,3,3,10,15,0,0,0,0]
[5,"МБОУ Аксубаевская сош №2”","Удиярову Татьяну Валерьяновну","высш","память","СП",2,1,1,15,15,0,0,0,0]
[6,"МБОУ Аксубаевская сош №2”","Башатова Светлана Владимировна","ср/спец","веселые нотки","ХЭ",4,2,3,10,15,0,0,0,0]
[7,"МБОУ Аксубаевская сош №2”","Шуркина Аэлита Викторовна","высш","ЮИД","СП",3,2,3,10,15,0,0,0,0]
[8,"МБОУ Аксубаевская сош №2”","Ванюкову Светлану Александровну","высш","юный физик","ЕН",2,1,2,12,15,0,0,0,0]
[9,"МБОУ Аксубаевская сош №2”","Миронкин Вячеслав Алексеевич","высш","Логомир","ТТ",1,1,1,15,15,0,0,0,0]
[10,"МБОУ Аксубаевская сош №2”","Аюханова Гульнара Раилевна","высш","умелые руки","ТТ",2,1,1,15,15,0,0,0,0]
[11,"МБОУ Аксубаевская сош №2”","Панюкова Надежда Николаевна","высш","школа юных лесоводов","ЭБ",2,1,2,12,15,0,0,0,0]
[12,"МБОУ Аксубаевская сош №2”","Пименова Наталья Владимировна",null,"Ритмика и танец","ХЭ",4,1,3,10,15,0,0,0,0]
[13,"МБОУ Аксубаевская сош №2”","Львову Елену Николаевну","высш","эрудит","СП",2,2,1,15,15,0,0,0,0]
[14,"МБОУ Аксубаевская сош №2”","Шуркина Аэлита Викторовна","высш","Фантазия","ХЭ",3,2,3,10,15,0,0,0,0]
[15,"МБОУ Аксубаевская сош №2”","Никитин Николай Алексеевич",null,"Бадминтон","ФС",3,2,3,10,15,0,0,0,0]
[16,"МБОУ Аксубаевская сош №2”","Мясникова Лилия Валентиновна",null,"Школьный тэатр","ХЭ",1,2,1,{"$f":"IF(I103=1,15,IF(I103=2,12,IF(I103=3,10)))","v":15},15,0,0,0,0]
[17,"МБОУ Аксубаевская сош №2”","Горбунов Геннадий Валерьевич","высш","белая ладья","ФС",2,3,1,15,15,0,0,0,0]
[{"$nulls":8},"Всего",{"$f":"SUM(J88:J104)","v":216},{"$f":"SUM(K88:K104)","v":255}]
[]
[1,"МБОУ “Аксубаевский лицей”","Павлова Валерия Мироновича","высш","Волейбол","ФС",3,2,2,{"$f":"IF(I107=1,15,IF(I107=2,12,IF(I107=3,10)))","v":12},15,0,0,0,0]
[2,"МБОУ “Аксубаевский лицей”","Калимуллин Саяр Газинурович","высш","Волейбол","ФС",3,3,1,{"$f":"IF(I108=1,15,IF(I108=2,12,IF(I108=3,10)))","v":15},15,0,0,0,0]
[3,"МБОУ “Аксубаевский лицей”","Калимуллин Саяр Газинурович","высш","Волейбол","ФС",3,3,2,{"$f":"IF(I109=1,15,IF(I109=2,12,IF(I109=3,10)))","v":12},15,0,0,0,0]
[4,"МБОУ “Аксубаевский лицей”","Чернышева Анастасия Сергеевна","высш","Театральная студия Премьера","ХЭ",3,1,1,{"$f":"IF(I110=1,15,IF(I110=2,12,IF(I110=3,10)))","v":15},15,0,0,0,0]
[5,"МБОУ “Аксубаевский лицей”","Петрова Анастасия Сергеевна","высш","ориент","ВП",3,1,1,{"$f":"IF(I111=1,15,IF(I111=2,12,IF(I111=3,10)))","v":15},15,0,0,0,0]
[6,"МБОУ “Аксубаевский лицей”","Архипова Ольга Аркадьевна","высш","Живое перо","СП",3,1,1,15,15,0,0,0,0]
[7,"МБОУ “Аксубаевский лицей”","Мясникова Инара Фазыловна","высш","ЮИД","СП",3,1,2,12,15,0,0,0,0]
[8,"МБОУ “Аксубаевский лицей”","Карпова Татьяна Семеновна","высш","Шахматы","ФС",2,1,1,15,15,0,0,0,0]
[9,"МБОУ “Аксубаевский лицей”","Пахомова Светлана Виторовна","высш","Хатер (память)","ТК",1,1,1,15,15,0,0,0,0]
[10,"МБОУ “Аксубаевский лицей”","Мингалиев Алид Самигуллович","высш","Робототехника","ТТ",null,null,1,15,15,0,0,0,0]
[11,"МБОУ “Аксубаевский лицей”","Сударев Алексей Михайлович","высш","Байтик","ТТ",1,null,1,15,15,0,0,0,0]
[12,"МБОУ “Аксубаевский лицей”","Калимуллина Елена Александровна","высш","умелые руки","ТТ",3,2,2,12,15,0,0,0,0]
[{"$nulls":8},"Всего",{"$f":"SUM(J107:J118)","v":168},{"$f":"SUM(K107:K118)","v":180}]
[]
[1,"МБОУ Староильдеряковская сш”","Николаев  Юрий Иванович","ср/спец"," туризм","ТК",3,3,3,10,15,0,0,0,0]
[2,"МБОУ Староильдеряковская сш”","Зольникова Елена Валимировна","ср/спец","Занимательное конструирование","ТТ",3,2,3,10,15,0,0,0,0]
[3,"МБОУ Староильдеряковская сш”","Альметкину Светлану Викторовну","высш","краеведение","ТК",3,3,2,12,15,0,0,0,0]
[4,"МБОУ Староильдеряковская сш”","Посредникова Елена Александровна","высш","театр","ХЭ",null,3,1,15,15,0,0,0,0]
[5,"МБОУ Староильдеряковская сш”","Морозова Людмила Михайловна","высш","ЮИД","СП",3,1,1,15,15,0,0,0,0]
[6,"МБОУ Староильдеряковская сш”","Карпова Наталья Валерьевна","высш","Умелые руки","ТТ",3,2,3,10,15,0,0,0,0]
[{"$nulls":8},"Всего",{"$f":"SUM(J121:J126)","v":72},{"$f":"SUM(K121:K126)","v":90}]
[]
[1,"МБОУ Емелькинская сош”","Никитина Алексея Дмитриевича","высш","факел 1 группа","ВП",3,1,3,10,15,0,0,0,0]
[2,"МБОУ Емелькинская сош”","Елисеева Евгения Дмитриевича","высш","волейбол","ФС",2,2,2,12,15,0,0,0,0]
[3,"МБОУ Емелькинская сош”","Маркову Надежду Мироновну","высш","ЮИД","СП",3,2,1,15,15,0,0,0,0]
[{"$nulls":8},"Всего",{"$f":"SUM(J129:J131)","v":37},{"$f":"SUM(K129:K131)","v":45}]
[]
[1,"МБОУ Чувенорускинская сш”","Сафиуллина Танзиля Закиулловна","высш","ЮИД","СП",3,1,1,15,15,0,0,0,0]
[{"$nulls":8},"Всего",{"$f":"SUM(J134:J134)","v":15},{"$f":"SUM(K134:K134)","v":15}]
[]
[1,"МБОУ “Староузеевская сош”","Крмакова Александра Васильевича","высш","баскетбол","ФС",3,2,3,10,15,0,0,0,0]
[2,"МБОУ “Староузеевская сош”","Львов Николай Демидович","высш","Юный техник","ТТ",3,2,1,15,15,0,0,0,0]
[3,"МБОУ “Староузеевская сош”","Захарова Бориса Андреевича","высш","краеведение","ТК",3,1,1,15,15,0,0,0,0]
[4,"МБОУ “Староузеевская сош”","Павлова Татьяна Петровна",null,"Соприкосновнение с прекрассным (театр)","ХЭ",3,1,1,15,15,0,0,0,0]
[{"$nulls":8},"Всего",{"$f":"SUM(J137:J140)","v":55},{"$f":"SUM(K137:K140)","v":60}]
[]
[1,"МБОУ Старокиязлинская сош”","Абраров Равиль Нуризанович","высш","Волейбол","ФС",3,1,1,15,15,0,0,0,0]
[2,"МБОУ Старокиязлинская сош”","Гильмутдинову Алсу Галимзяновну","высш","Компьютерный мир","ТТ",3,1,1,15,15,0,0,0,0]
[{"$nulls":8},"Всего",{"$f":"SUM(J143:J144)","v":30},{"$f":"SUM(K143:K144)","v":30}]
[]
[1,"МБОУ Савгачевская сош”","Егоров Владимир Павлович","высш","гол.соловей","ХЭ",3,1,2,12,15,0,0,0,0]
[2,"МБОУ Савгачевская сош”","Герасимова Галина Владимировна","высш","юный физик","ЕН",2,1,2,12,15,0,0,0,0]
[3,"МБОУ Савгачевская сош”","Васильева Ольга Дмитриевна","высш","Волейбол","ФС",3,1,3,10,15,0,0,0,0]
[4,"МБОУ Савгачевская сош”","Охотникова Анатолия Михайловича","высш","шашки, шахматы","ФС",2,1,1,15,15,0,0,0,0]
[5,"МБОУ Савгачевская сош”","Васильев Леонид Федорович","высш","настольный теннис","ФС",3,1,3,10,15,0,0,0,0]
[6,"МБОУ Савгачевская сош”","Васильев Леонид Федорович","высш","Хоккей","ФС",2,null,1,15,15,0,0,0,0]
[7,"МБОУ Савгачевская сош”","Романова Татьяна Петровна","высш","обыч.чув.народа","СП",3,1,3,10,15,0,0,0,0]
[8,"МБОУ Савгачевская сош”","Романова Татьяна Петровна","высш","Краеведение","ТК",1,null,1,15,15,0,0,0,0]
[9,"МБОУ Савгачевская сош”","Николаева Анна Анатольевна","высш","ЮИД","СП",3,1,1,15,15,0,0,0,0]
[10,"МБОУ Савгачевская сош”","Ишметова Галина Васильевна","высш","умелые руки(дев)","ТТ",3,1,3,10,15,0,0,0,0]
[11,"МБОУ Савгачевская сош”","Дмитриева Ирина Витальевна","высш","Мастера творчества","ТТ",3,1,3,10,15,0,0,0,0]
[{"$nulls":8},"Всего",{"$f":"SUM(J147:J157)","v":134},{"$f":"SUM(K147:K157)","v":165}]
[]
[1,"МБОУ “Старосаврушсая","Мельникова Галина Петровна","высш","Швейное дело","ТТ",1,1,1,15,15,0,0,0,0]
[2,"МБОУ “Старосаврушсая","Козлова Агрепина Анатольевна ","высш","ЮИД","СП",3,2,1,15,15,0,0,0,0]
[{"$nulls":8},"Всего",{"$f":"SUM(J160:J161)","v":30},{"$f":"SUM(K160:K161)","v":30}]
[]
[1,"МБОУ “Нижнетатмайская сош”","Хайруллина Рузиля Адгамовна","высш","Театральный кружок","ХЭ",5,1,1,{"$f":"IF(I164=1,15,IF(I164=2,12,IF(I164=3,10)))","v":15},15,0,0,0,0]
[2,"МБОУ “Нижнетатмайская сош”","Гафиятуллина Руфия Амировна","высш","ЮИД","СП",3,1,1,15,15,0,0,0,0]
[3,"МБОУ “Нижнетатмайская сош”","Камалова Сирень Равильевна","высш","Национальная борьба","ФС",1,1,1,15,15,0,0,0,0]
[{"$nulls":8},"Всего",{"$f":"SUM(J164:J166)","v":45},{"$f":"SUM(K164:K166)","v":45}]
[]
[]
[1,"МБОУ Нижнебаландинская нош/сад”","Галлямова Ильсия Ильясовна","высш","ЮИД","СП",3,1,1,15,15,0,0,0,0]
[{"$nulls":8},"Всего",null,15]
[]
[]
[1,"МБДОУ \"Радуга”","Ильина Ирина Виталиевна","высш","Легомастер","ТТ",1,1,1,15,15,0,0,0,0]
[1,"МБДОУ \"Ляйсан”","Лоскутова Ольга Владимировна","высш","Зеленый огонек","СП",1,1,1,15,15,0,0,0,0]
[1,"МБДОУ \"Буратино”","Нургатина Надежда Витальевна ","высш","Творческая мастерская","ХЭ",2,1,1,{"$f":"IF(I176=1,15,IF(I176=2,12,IF(I176=3,10)))","v":15},15,0,0,0,0]
[1,"МБДОУ \"Буратино”","Хаматгатина Лилия Айратовна","высш","Шахматы","ФС",1,1,1,15,15,0,0,0,0]
[1,"МБДОУ \"Солнышко”","Хисамова Марина Лазаревна","высш","Веселый язычок","СП",1,1,1,15,15,0,0,0,0]
[{"$nulls":8},"Всего",{"$f":"SUM(J178:J178)","v":15},{"$f":"SUM(K174:K178)","v":75}]
[]
[1,"МБУ ДО ЦВР","Вагапова Гулюса Равилевна","высш","Умелые ручки 1 группа","ХЭ",3,1,2,12,15,0,0,0,0]
[2,"МБУ ДО ЦВР","Вагапова Гулюса Равилевна","высш","Умелые ручки 2 группа","ХЭ",3,1,2,12,15,0,0,0,0]
[3,"МБУ ДО ЦВР","Вагапова Гулюса Равилевна","высш","Умелые ручки 3 группа","ХЭ",3,1,2,12,15,0,0,0,0]
[{"$nulls":8},"Всего",{"$f":"SUM(J181:J183)","v":36},{"$f":"SUM(K181:K183)","v":45}]
[]
[1,"МБУ ДО ЦВР","Ярмухаметов Айрат Ильсурович","ср/спец","Картинг-клуб 1 группа","ТТ",3,2,2,12,15,0,0,0,0]
[2,"МБУ ДО ЦВР","Ярмухаметов Айрат Ильсурович","ср/спец","Картинг-клуб 2 группа","ТТ",3,2,2,12,15,0,0,0,0]
[3,"МБУ ДО ЦВР","Ярмухаметов Айрат Ильсурович","ср/спец","Картинг-клуб 3 группа","ТТ",3,2,2,{"$f":"IF(I188=1,15,IF(I188=2,12,IF(I188=3,10)))","v":12},15,0,0,0,0]
[{"$nulls":8},"Всего",{"$f":"SUM(J186:J188)","v":36},{"$f":"SUM(K186:K188)","v":45}]

{"sheet":"Лист2","index":2,"n_rows":7,"n_cols":13,"rows_kept":7}
["Столбец1"]
["техническая",null,null,"Групп","Технич творч","Естест-научн","Физкуль-спорт","Худож-эстет","Туристко-краеведч","Социально-педагогическое","Эколого-биологическое","Военно-патриотическое","Всего"]
["естественно-научная",null,null,"1 год обучения",{"$f":"COUNTIF(#REF!,\"Т1\")","v":{"$error":"#REF!"}},{"$f":"COUNTIF(#REF!,\"Е1\")","v":{"$error":"#REF!"}},{"$f":"COUNTIF(#REF!,\"Ф1\")","v":{"$error":"#REF!"}},{"$f":"COUNTIF(#REF!,\"Х1\")","v":{"$error":"#REF!"}},{"$f":"COUNTIF(#REF!,\"ТК1\")","v":{"$error":"#REF!"}},{"$f":"COUNTIF(#REF!,\"СП1\")","v":{"$error":"#REF!"}},{"$f":"COUNTIF(#REF!,\"ЭБ1\")","v":{"$error":"#REF!"}},{"$f":"COUNTIF(#REF!,\"ВП1\")","v":{"$error":"#REF!"}},{"$f":"SUM(E3:L3)","v":{"$error":"#REF!"}}]
["физкультурно-спортивная",null,null,"2 год обучения",{"$f":"COUNTIF(#REF!,\"Т2\")","v":{"$error":"#REF!"}},{"$f":"COUNTIF(#REF!,\"Е2\")","v":{"$error":"#REF!"}},{"$f":"COUNTIF(#REF!,\"Ф2\")","v":{"$error":"#REF!"}},{"$f":"COUNTIF(#REF!,\"Х2\")","v":{"$error":"#REF!"}},{"$f":"COUNTIF(#REF!,\"ТК2\")","v":{"$error":"#REF!"}},{"$f":"COUNTIF(#REF!,\"СП2\")","v":{"$error":"#REF!"}},{"$f":"COUNTIF(#REF!,\"ЭБ2\")","v":{"$error":"#REF!"}},{"$f":"COUNTIF(#REF!,\"ВП2\")","v":{"$error":"#REF!"}},{"$f":"SUM(E4:L4)","v":{"$error":"#REF!"}}]
["художественная",null,null,"3 год обучения",{"$f":"COUNTIF(#REF!,\"Т3\")","v":{"$error":"#REF!"}},{"$f":"COUNTIF(#REF!,\"Е3\")","v":{"$error":"#REF!"}},{"$f":"COUNTIF(#REF!,\"Ф3\")","v":{"$error":"#REF!"}},{"$f":"COUNTIF(#REF!,\"Х3\")","v":{"$error":"#REF!"}},{"$f":"COUNTIF(#REF!,\"ТК3\")","v":{"$error":"#REF!"}},{"$f":"COUNTIF(#REF!,\"СП3\")","v":{"$error":"#REF!"}},{"$f":"COUNTIF(#REF!,\"ЭБ3\")","v":{"$error":"#REF!"}},{"$f":"COUNTIF(#REF!,\"ВП3\")","v":{"$error":"#REF!"}},{"$f":"SUM(E5:L5)","v":{"$error":"#REF!"}}]
["туристко-краеведческая",null,null,"Итого",{"$f":"SUM(E3:E5)","v":{"$error":"#REF!"}},{"$error":"#REF!"},{"$error":"#REF!"},{"$error":"#REF!"},{"$error":"#REF!"},{"$error":"#REF!"},{"$error":"#REF!"},{"$error":"#REF!"},{"$f":"SUM(E6:L6)","v":{"$error":"#REF!"}}]
["социально-педагогическая"]

{"sheet":"Лист3","index":3,"n_rows":136,"n_cols":2,"rows_kept":136}
["Юный Архимед","СП"]
["Волейбол","ФС"]
["Шиповка юных","ФС"]
["Краеведение","ТК"]
["Юный умелец","ТТ"]
["Автомоделирование","ТТ"]
["Юный изобретатель","ТТ"]
["Волейбол","ФС"]
["Эврика","ЕН"]
["Юный химик","ЕН"]
["Краеведение","ТК"]
["Юный грамотей","СП"]
["Туризм","ТК"]
["Клуб Пифагора","СП"]
["ЮИД","СП"]
["Страна мастериц","ТТ"]
["Тайна родного края","ТК"]
["Волейбол","ФС"]
["Умелые ручки","ХЭ"]
["Баскетбол","ФС"]
["В мире языков","СП"]
["Умелые руки","ТТ"]
["Волейбол","ФС"]
["Арлекино","ХЭ"]
["Сыны Отечества","ВП"]
["Умелые руки","ХЭ"]
["Баскетбол","ФС"]
["Сандугачкай 2 группы","ХЭ"]
["В мире научных открытий","СП"]
["Автодело","ТТ"]
["Умка","СП"]
["Рукодельница","ХЭ"]
["ЮИД","СП"]
["Бадминтон","ФС"]
["Умелые руки","ХЭ"]
["Робототехника","ТТ"]
["Баскетбол","ФС"]
["Юный спасатель","ВП"]
["Занимательный английский","СП"]
["Автомоделирование","ТТ"]
["Автодело","ТТ"]
["Лыжные гонки","ФС"]
["Художественный дизайн","ХЭ"]
["Юннат","ЭБ"]
["Баскетбол","ФС"]
["Клио","СП"]
["Прикладное искусство 2 группы","ТТ"]
["Автодело 2 группы","ТТ"]
["Бадминтон","ФС"]
["Баскетбол","ФС"]
["В мире английского языка","СП"]
["В мире  ярких краскок","ХЭ"]
["Веселые краски","ХЭ"]
["Экологическая азбука","ЭБ"]
["Секреты текстосложения","СП"]
["Край родной мой","ТК"]
["Юный физик","ЕН"]
["Экологический","ЭБ"]
["Юный патриот","ВП"]
["Умелые руки","ТТ"]
["Юный натуралист","ЭБ"]
["Эрудит(матем)","СП"]
["Калейдоскоп (психология)","СП"]
["Народная жемчужина","СП"]
["Робототехника","ТТ"]
["Разноцветный английский","СП"]
["Шашки, шахматы","ФС"]
["Шахматы","ФС"]
["Мир языков(тат.язык)","СП"]
["Баскетбол","ФС"]
["Настольный теннис","ФС"]
["Клио","СП"]
["Память","СП"]
["Веселые нотки","ХЭ"]
["Абитуриент (рус.яз)","СП"]
["Юный физик","ЕН"]
["Логомир","ТТ"]
["Умелые руки","ТТ"]
["Интеллектуал","ЭБ"]
["Ритмика и танец","ХЭ"]
["Эрудит","СП"]
["Фантазия","ХЭ"]
["Бадминтон","ФС"]
["Белая ладья","ФС"]
["Волейбол","ФС"]
["Волейбол","ФС"]
["Город мастеров","ХЭ"]
["Ориент","ВП"]
["Юный натуралист","ЭБ"]
["Живое перо","СП"]
["Автодело","ТТ"]
["ЮИД","СП"]
["Шахматы","ФС"]
["Хатер (память)","ТК"]
["Умелые руки","ТТ"]
["Туризм","ТК"]
["Умелые руки","ТТ"]
["Краеведение","ТК"]
["ЮИД","СП"]
["Лингвист","СП"]
["Я и компьютер","ТТ"]
["факел 1 группа","ВП"]
["Свирелька","ХЭ"]
["Волейбол","ФС"]
["Умелые руки","ХЭ"]
["Мастерок","ТТ"]
["Пегас","СП"]
["Баскетбол","ФС"]
["Юный техник","ТТ"]
["краеведение","ТК"]
["Юные таланты","ХЭ"]
["Волейбол","ФС"]
["Компьютерный мир","ТТ"]
["Голосистый соловей","ХЭ"]
["Мастерок 2 группы","ТТ"]
["Юный физик","ЕН"]
["Волейбол","ФС"]
["Шашки, шахматы","ФС"]
["Юный программист","ТТ"]
["Настольный теннис","ФС"]
["Обычаи чувашского народа","СП"]
["Занимательная математика","СП"]
["Умелые руки","ТТ"]
["Мастера творчества","ТТ"]
["Юный пользователь","ТТ"]
["Эскиз","ХЭ"]
["Умелые руки ","ХЭ"]
["Эрудит (матем)","СП"]
["Национальная борьба","ФС"]
["В мире английского языка","СП"]
["Легомастер","ТТ"]
["Подружись с английским","СП"]
["Волшебный квадратик","ХЭ"]
["Веселый язычок","СП"]
["Умелые ручки 3 группы","ХЭ"]
["Картинг-клуб 3 группы","ТТ"]